[Event "ONJK 2024 ABC"]
[Site "Velp, Netherlands"]
[Date "2024.08.02"]
[Round "1.11"]
[White "Helderman, Faas"]
[Black "Frederiks, Jesse"]
[Result "1/2-1/2"]
[TimeControl "90 minutes + 30 seconds"]
[WhiteElo "1603"]
[BlackElo "1757"]

1. d4 {[%clk 01:30:58]} {[%emt 00:00:01]} Nf6 {[%clk 01:30:55]} {[%emt
00:00:05]} 2. Bf4 {[%clk 01:31:20]} {[%emt 00:00:08]} g6 {[%clk 01:30:47]}
{[%emt 00:00:38]} 3. Nc3 {[%clk 01:31:35]} {[%emt 00:00:14]} Bg7 {[%clk
01:30:36]} {[%emt 00:00:41]} 4. e4 {[%clk 01:31:46]} {[%emt 00:00:19]} d6
{[%clk 01:30:53]} {[%emt 00:00:14]} 5. Qd2 {[%clk 01:32:03]} {[%emt 00:00:13]}
O-O {[%clk 01:29:43]} {[%emt 00:01:40]} 6. O-O-O {[%clk 01:32:11]} {[%emt
00:00:22]} c6 {[%clk 01:26:37]} {[%emt 00:03:36]} 7. h4 {[%clk 01:29:44]}
{[%emt 00:02:56]} Qa5 {[%clk 01:25:36]} {[%emt 00:01:32]} 8. f3 {[%clk
01:26:43]} {[%emt 00:03:30]} b5 {[%clk 01:24:22]} {[%emt 00:01:45]} 9. Kb1
{[%clk 01:24:23]} {[%emt 00:02:50]} b4 {[%clk 01:21:18]} {[%emt 00:03:34]} 10.
Nce2 {[%clk 01:24:16]} {[%emt 00:00:36]} Be6 {[%clk 01:18:34]} {[%emt
00:03:15]} 11. b3 {[%clk 01:21:46]} {[%emt 00:03:00]} c5 {[%clk 01:04:39]}
{[%emt 00:14:25]} 12. d5 {[%clk 01:18:42]} {[%emt 00:03:33]} Bd7 {[%clk
01:04:19]} {[%emt 00:00:51]} 13. Ng3 {[%clk 01:13:14]} {[%emt 00:05:57]} Qa3
{[%clk 01:02:31]} {[%emt 00:02:20]} 14. Qc1 {[%clk 01:09:51]} {[%emt 00:03:52]}
Qxc1+ {[%clk 01:02:25]} {[%emt 00:00:36]} 15. Bxc1 {[%clk 01:09:17]} {[%emt
00:01:04]} a5 {[%clk 01:02:03]} {[%emt 00:00:53]} 16. h5 {[%clk 00:58:26]}
{[%emt 00:11:21]} a4 {[%clk 00:59:59]} {[%emt 00:02:34]} 17. hxg6 {[%clk
00:57:34]} {[%emt 00:01:21]} hxg6 {[%clk 01:00:09]} {[%emt 00:00:20]} 18. Bh6
{[%clk 00:54:15]} {[%emt 00:03:49]} axb3 {[%clk 00:59:22]} {[%emt 00:01:18]} 19.
cxb3 {[%clk 00:51:05]} {[%emt 00:03:39]} Na6 {[%clk 00:58:05]} {[%emt
00:01:47]} 20. Bxg7 {[%clk 00:48:39]} {[%emt 00:02:56]} Kxg7 {[%clk 00:58:18]}
{[%emt 00:00:18]} 21. Bxa6 {[%clk 00:45:18]} {[%emt 00:03:50]} Rxa6 {[%clk
00:58:40]} {[%emt 00:00:09]} 22. Nf1 {[%clk 00:43:55]} {[%emt 00:01:51]} Bb5
{[%clk 00:56:22]} {[%emt 00:02:49]} 23. Ne3 {[%clk 00:43:05]} {[%emt 00:01:18]}
Rc8 {[%clk 00:54:57]} {[%emt 00:01:57]} 24. Nh3 {[%clk 00:36:31]} {[%emt
00:07:03]} c4 {[%clk 00:50:12]} {[%emt 00:05:16]} 25. bxc4 {[%clk 00:35:40]}
{[%emt 00:01:20]} Bxc4 {[%clk 00:50:34]} {[%emt 00:00:08]} 26. Nxc4 {[%clk
00:35:42]} {[%emt 00:00:29]} Rxc4 {[%clk 00:50:57]} {[%emt 00:00:08]} 27. Rc1
{[%clk 00:33:16]} {[%emt 00:02:55]} Rd4 {[%clk 00:49:15]} {[%emt 00:02:13]} 28.
Rhd1 {[%clk 00:31:20]} {[%emt 00:02:25]} Rxd1 {[%clk 00:49:34]} {[%emt
00:00:11]} 29. Rxd1 {[%clk 00:31:44]} {[%emt 00:00:07]} Nd7 {[%clk 00:49:10]}
{[%emt 00:00:53]} 30. Nf2 {[%clk 00:29:59]} {[%emt 00:02:14]} Nc5 {[%clk
00:48:30]} {[%emt 00:01:11]} 31. Nd3 {[%clk 00:25:07]} {[%emt 00:05:21]} b3
{[%clk 00:47:11]} {[%emt 00:01:50]} 32. axb3 {[%clk 00:20:40]} {[%emt
00:04:57]} Nxb3 {[%clk 00:47:30]} {[%emt 00:00:10]} 33. Kb2 {[%clk 00:19:38]}
{[%emt 00:01:32]} Rb6 {[%clk 00:44:40]} {[%emt 00:03:21]} 34. Kc3 {[%clk
00:19:06]} {[%emt 00:01:01]} Rb7 {[%clk 00:43:26]} {[%emt 00:01:44]} 35. Rb1
{[%clk 00:17:33]} {[%emt 00:02:02]} Nc5 {[%clk 00:43:33]} {[%emt 00:00:24]} 36.
Rxb7 {[%clk 00:17:42]} {[%emt 00:00:19]} Nxb7 {[%clk 00:43:43]} {[%emt
00:00:23]} 37. Kd4 {[%clk 00:16:36]} {[%emt 00:01:34]} g5 {[%clk 00:42:17]}
{[%emt 00:01:58]} 38. e5 {[%clk 00:13:38]} {[%emt 00:03:26]} Kg6 {[%clk
00:39:13]} {[%emt 00:03:36]} 39. g4 {[%clk 00:13:07]} {[%emt 00:00:59]} f5
{[%clk 00:35:25]} {[%emt 00:04:20]} 40. exf6 {[%clk 00:08:01]} {[%emt
00:05:35]} Kxf6 {[%clk 00:35:39]} {[%emt 00:00:17]} 41. Nf2 {[%clk 00:07:30]}
{[%emt 00:00:57]} Nc5 {[%clk 00:35:17]} {[%emt 00:00:56]} 42. Ne4+ {[%clk
00:07:02]} {[%emt 00:00:58]} Nxe4 {[%clk 00:35:00]} {[%emt 00:00:47]} 43. Kxe4
{[%clk 00:05:01]} {[%emt 00:02:30]} e6 {[%clk 00:34:33]} {[%emt 00:00:57]} 44.
dxe6 {[%clk 00:04:16]} {[%emt 00:01:15]} Kxe6 {[%clk 00:34:58]} {[%emt
00:00:06]} 45. f4 {[%clk 00:03:00]} {[%emt 00:01:45]} d5+ {[%clk 00:34:51]}
{[%emt 00:00:38]} 46. Ke3 {[%clk 00:02:40]} {[%emt 00:00:48]} gxf4+ {[%clk
00:34:43]} {[%emt 00:00:39]} 47. Kxf4 {[%clk 00:02:59]} {[%emt 00:00:11]} Kf6
{[%clk 00:35:10]} {[%emt 00:00:03]} 48. Ke3 {[%clk 00:02:58]} {[%emt 00:00:31]}
Kg5 {[%clk 00:35:35]} {[%emt 00:00:06]} 49. Kd4 {[%clk 00:03:18]} {[%emt
00:00:09]} Kxg4 {[%clk 00:36:01]} {[%emt 00:00:04]} 50. Kxd5 {[%clk 00:03:37]}
{[%emt 00:00:10]} 1/2-1/2

[Event "ONJK 2024 ABC"]
[Site "Velp, Netherlands"]
[Date "2024.08.02"]
[Round "1.12"]
[White "De Rycke, Killian"]
[Black "Coorevits, Arthur"]
[Result "1-0"]
[TimeControl "90 minutes + 30 seconds"]
[WhiteElo "1751"]
[BlackElo "1573"]

1. e4 {[%clk 01:30:32]} {[%emt 00:00:26]} e5 {[%clk 01:30:52]} {[%emt
00:00:10]} 2. Nf3 {[%clk 01:30:36]} {[%emt 00:00:26]} Nc6 {[%clk 01:31:03]}
{[%emt 00:00:19]} 3. Bc4 {[%clk 01:30:40]} {[%emt 00:00:26]} Bc5 {[%clk
01:31:28]} {[%emt 00:00:05]} 4. d3 {[%clk 01:31:00]} {[%emt 00:00:10]} Nf6
{[%clk 01:31:50]} {[%emt 00:00:07]} 5. Bg5 {[%clk 01:31:23]} {[%emt 00:00:09]}
d6 {[%clk 01:32:07]} {[%emt 00:00:12]} 6. h3 {[%clk 01:31:36]} {[%emt
00:00:17]} Be6 {[%clk 01:32:33]} {[%emt 00:00:05]} 7. Bb3 {[%clk 01:31:49]}
{[%emt 00:00:17]} h6 {[%clk 01:32:46]} {[%emt 00:00:17]} 8. Bh4 {[%clk
01:32:06]} {[%emt 00:00:12]} g5 {[%clk 01:33:10]} {[%emt 00:00:06]} 9. Bg3
{[%clk 01:32:01]} {[%emt 00:00:36]} d5 {[%clk 01:31:45]} {[%emt 00:01:54]} 10.
exd5 {[%clk 01:30:51]} {[%emt 00:01:40]} Nxd5 {[%clk 01:32:00]} {[%emt
00:00:16]} 11. Nxe5 {[%clk 01:30:32]} {[%emt 00:00:48]} Nxe5 12. Bxe5 {[%clk
01:30:43]} Rg8 {[%clk 01:31:49]} {[%emt 00:00:47]} 13. Nd2 {[%clk 01:28:21]}
{[%emt 00:02:52]} Bd6 {[%clk 01:29:39]} {[%emt 00:02:40]} 14. Bxd6 {[%clk
01:28:10]} {[%emt 00:00:41]} Qxd6 {[%clk 01:30:05]} {[%emt 00:00:05]} 15. Ne4
{[%clk 01:27:19]} {[%emt 00:01:21]} Qe5 {[%clk 01:28:59]} {[%emt 00:01:35]} 16.
g4 {[%clk 01:17:12]} {[%emt 00:10:37]} Qxb2 {[%clk 01:27:19]} {[%emt 00:02:10]}
17. O-O {[%clk 01:10:34]} {[%emt 00:07:08]} O-O-O {[%clk 01:27:12]} {[%emt
00:00:38]} 18. Qd2 {[%clk 01:05:17]} {[%emt 00:05:45]} Qe5 {[%clk 01:27:03]}
{[%emt 00:00:40]} 19. Qa5 {[%clk 01:03:31]} {[%emt 00:02:15]} f5 {[%clk
01:25:31]} {[%emt 00:02:03]} 20. Nc5 {[%clk 01:00:05]} {[%emt 00:03:56]} b6
{[%clk 01:25:08]} {[%emt 00:00:54]} 21. Qa6+ {[%clk 01:00:18]} {[%emt
00:00:15]} Kb8 {[%clk 01:25:05]} {[%emt 00:00:34]} 22. Qb7# {[%clk 01:00:41]}
{[%emt 00:00:07]} 1-0

[Event "ONJK 2024 ABC"]
[Site "Velp, Netherlands"]
[Date "2024.08.02"]
[Round "1.13"]
[White "Zhao, Nick"]
[Black "Lejzerowicz, Nathan"]
[Result "1-0"]
[TimeControl "90 minutes + 30 seconds"]
[WhiteElo "1836"]
[BlackElo "1668"]

1. d4 {[%clk 01:30:59]} Nf6 {[%clk 01:30:43]} {[%emt 00:00:17]} 2. c4 {[%clk
01:31:24]} {[%emt 00:00:05]} c5 {[%clk 01:30:53]} {[%emt 00:00:19]} 3. d5
{[%clk 01:31:51]} {[%emt 00:00:04]} b5 {[%clk 01:31:11]} {[%emt 00:00:12]} 4.
cxb5 {[%clk 01:32:14]} {[%emt 00:00:07]} a6 {[%clk 01:30:41]} {[%emt 00:01:00]}
5. bxa6 {[%clk 01:32:28]} {[%emt 00:00:15]} Bxa6 {[%clk 01:31:00]} {[%emt
00:00:12]} 6. Nc3 {[%clk 01:32:53]} {[%emt 00:00:05]} d6 {[%clk 01:31:06]}
{[%emt 00:00:23]} 7. e4 {[%clk 01:31:24]} {[%emt 00:01:59]} Bxf1 {[%clk
01:30:54]} {[%emt 00:00:42]} 8. Kxf1 {[%clk 01:31:49]} {[%emt 00:00:05]} g6
{[%clk 01:31:05]} {[%emt 00:00:19]} 9. Bg5 {[%clk 01:30:30]} {[%emt 00:01:49]}
Bg7 {[%clk 01:30:40]} {[%emt 00:00:54]} 10. Qd2 {[%clk 01:30:20]} {[%emt
00:00:41]} O-O {[%clk 01:30:18]} {[%emt 00:00:51]} 11. Bh6 {[%clk 01:30:30]}
{[%emt 00:00:20]} Nbd7 {[%clk 01:29:10]} {[%emt 00:01:39]} 12. Bxg7 {[%clk
01:29:49]} {[%emt 00:01:11]} Kxg7 {[%clk 01:29:30]} {[%emt 00:00:09]} 13. f4
{[%clk 01:28:41]} {[%emt 00:01:38]} Qb6 {[%clk 01:28:32]} {[%emt 00:01:28]} 14.
Nf3 {[%clk 01:28:35]} {[%emt 00:00:37]} Rfb8 {[%clk 01:27:27]} {[%emt
00:01:35]} 15. Rb1 {[%clk 01:26:35]} {[%emt 00:02:30]} Ra7 {[%clk 01:23:01]}
{[%emt 00:04:56]} 16. g3 {[%clk 01:25:37]} {[%emt 00:01:27]} Qb4 {[%clk
01:20:19]} {[%emt 00:03:12]} 17. Qd3 {[%clk 01:24:11]} {[%emt 00:01:55]} c4
{[%clk 01:17:17]} {[%emt 00:03:33]} 18. Qd4 {[%clk 01:23:24]} {[%emt 00:01:17]}
Qc5 {[%clk 01:15:22]} {[%emt 00:02:25]} 19. Kg2 {[%clk 01:22:44]} {[%emt
00:01:09]} Rab7 {[%clk 01:14:23]} {[%emt 00:01:29]} 20. Qd2 {[%clk 01:20:56]}
{[%emt 00:02:17]} Ng4 {[%clk 01:11:25]} {[%emt 00:03:28]} 21. Rhe1 {[%clk
01:18:17]} {[%emt 00:03:09]} Qa7 {[%emt 00:13:15]} 22. h3 {[%clk 01:10:08]}
{[%emt 00:05:52]} Ngf6 {[%clk 01:00:30]} {[%emt 00:01:27]} 23. e5 {[%clk
01:10:19]} {[%emt 00:00:19]} dxe5 {[%clk 00:59:55]} {[%emt 00:01:06]} 24. fxe5
{[%clk 01:10:42]} {[%emt 00:00:07]} Ne8 {[%clk 00:57:56]} {[%emt 00:02:28]} 25.
Nd4 {[%clk 01:08:50]} {[%emt 00:02:22]} Rc8 {[%clk 00:54:40]} {[%emt 00:03:47]}
26. Nc6 {[%clk 01:07:11]} {[%emt 00:02:09]} Qc5 {[%clk 00:54:25]} {[%emt
00:00:44]} 27. Ne4 {[%clk 01:06:28]} {[%emt 00:01:13]} Qb6 {[%clk 00:50:47]}
{[%emt 00:04:09]} 28. Nxe7 {[%clk 01:04:37]} {[%emt 00:02:21]} Ra8 {[%clk
00:50:31]} {[%emt 00:00:45]} 29. Nc3 {[%clk 01:01:44]} {[%emt 00:03:22]} Nc5
{[%clk 00:47:04]} {[%emt 00:03:57]} 30. d6 {[%clk 00:58:49]} {[%emt 00:03:26]}
Nd3 {[%clk 00:46:09]} {[%emt 00:01:25]} 31. Ned5 {[%clk 00:58:12]} {[%emt
00:01:06]} Nxe1+ {[%clk 00:45:16]} {[%emt 00:01:23]} 32. Qxe1 {[%clk 00:56:52]}
{[%emt 00:01:51]} Qc6 {[%clk 00:41:44]} {[%emt 00:04:02]} 33. Kh2 {[%clk
00:56:32]} {[%emt 00:00:46]} Rab8 {[%clk 00:41:17]} {[%emt 00:01:00]} 34. Qd2
{[%clk 00:55:48]} {[%emt 00:01:14]} f6 {[%clk 00:37:53]} {[%emt 00:03:55]} 35.
exf6+ {[%clk 00:52:24]} {[%emt 00:03:54]} Nxf6 {[%clk 00:37:30]} {[%emt
00:00:53]} 36. Nxf6 {[%clk 00:52:47]} {[%emt 00:00:06]} Kxf6 {[%clk 00:37:45]}
{[%emt 00:00:14]} 37. Nd5+ {[%clk 00:49:29]} {[%emt 00:03:48]} Kg7 {[%clk
00:30:31]} {[%emt 00:07:44]} 38. Qd4+ {[%clk 00:49:49]} {[%emt 00:00:10]} Kh6
{[%clk 00:28:52]} {[%emt 00:02:09]} 39. Qf4+ {[%clk 00:47:21]} {[%emt
00:02:58]} Kg7 {[%clk 00:27:41]} {[%emt 00:01:42]} 40. Qf6+ {[%clk 00:45:08]}
{[%emt 00:02:42]} Kh6 {[%clk 00:26:00]} {[%emt 00:02:11]} 41. Ne3 {[%clk
00:44:18]} {[%emt 00:01:20]} Qe4 {[%clk 00:24:25]} {[%emt 00:02:07]} 42. Ng4+
{[%clk 00:44:25]} {[%emt 00:00:22]} Qxg4 {[%clk 00:22:47]} {[%emt 00:02:09]} 43.
hxg4 {[%clk 00:44:46]} {[%emt 00:00:09]} Rb5 {[%clk 00:22:40]} {[%emt
00:00:36]} 44. Kg2 {[%clk 00:44:47]} {[%emt 00:00:29]} c3 {[%clk 00:21:41]}
{[%emt 00:01:30]} 45. Rh1+ {[%clk 00:45:07]} {[%emt 00:00:09]} Rh5 {[%clk
00:21:57]} {[%emt 00:00:15]} 46. g5# {[%clk 00:45:30]} {[%emt 00:00:07]} 1-0

[Event "ONJK 2024 ABC"]
[Site "Velp, Netherlands"]
[Date "2024.08.02"]
[Round "1.14"]
[White "Smeets, Bent"]
[Black "Meert, Maarin"]
[Result "0-1"]
[TimeControl "90 minutes + 30 seconds"]
[WhiteElo "1657"]
[BlackElo "1811"]

1. d4 {[%clk 01:30:58]} {[%emt 00:00:02]} d5 {[%clk 01:30:57]} {[%emt
00:00:04]} 2. c4 {[%clk 01:31:20]} {[%emt 00:00:08]} c6 {[%clk 01:31:23]}
{[%emt 00:00:04]} 3. Nc3 {[%clk 01:31:34]} {[%emt 00:00:16]} Nf6 {[%clk
01:31:47]} {[%emt 00:00:06]} 4. Nf3 {[%clk 01:31:48]} {[%emt 00:00:16]} dxc4
{[%clk 01:31:46]} {[%emt 00:00:31]} 5. e3 {[%clk 01:32:00]} {[%emt 00:00:18]}
b5 {[%clk 01:32:00]} {[%emt 00:00:15]} 6. a4 {[%clk 01:31:41]} {[%emt
00:00:50]} b4 {[%clk 01:23:16]} {[%emt 00:09:14]} 7. Na2 {[%clk 01:29:45]}
{[%emt 00:02:26]} b3 {[%clk 01:19:44]} {[%emt 00:04:01]} 8. Nc3 {[%clk
01:27:13]} {[%emt 00:03:03]} Ba6 {[%clk 01:13:57]} {[%emt 00:06:17]} 9. Ne5
{[%clk 01:24:05]} {[%emt 00:03:38]} Nbd7 {[%clk 01:10:10]} {[%emt 00:04:18]} 10.
Bxc4 {[%clk 01:07:49]} {[%emt 00:16:47]} Bxc4 {[%clk 01:09:42]} {[%emt
00:00:57]} 11. Nxc4 {[%clk 01:08:11]} {[%emt 00:00:08]} Rb8 {[%clk 01:09:49]}
{[%emt 00:00:23]} 12. Ra3 {[%clk 01:07:26]} {[%emt 00:01:15]} Rb4 {[%clk
01:02:40]} {[%emt 00:07:39]} 13. Nd2 {[%clk 01:06:52]} {[%emt 00:01:04]} Nb6
{[%clk 01:00:13]} {[%emt 00:02:56]} 14. Rxb3 {[%clk 01:05:57]} {[%emt
00:01:26]} e6 {[%clk 01:00:09]} {[%emt 00:00:34]} 15. Rxb4 {[%clk 01:03:23]}
{[%emt 00:03:04]} Bxb4 {[%clk 01:00:30]} {[%emt 00:00:09]} 16. Qb3 {[%clk
01:03:28]} {[%emt 00:00:26]} a5 {[%clk 01:00:21]} {[%emt 00:00:38]} 17. Na2
{[%clk 01:02:15]} {[%emt 00:01:43]} Qd5 {[%clk 00:57:20]} {[%emt 00:03:31]} 18.
Qxd5 {[%clk 00:56:04]} {[%emt 00:06:40]} cxd5 {[%clk 00:57:04]} {[%emt
00:00:46]} 19. Nxb4 {[%clk 00:55:48]} {[%emt 00:00:47]} axb4 {[%clk 00:57:24]}
{[%emt 00:00:09]} 20. b3 {[%clk 00:54:30]} {[%emt 00:01:48]} O-O {[%clk
00:57:46]} {[%emt 00:00:08]} 21. Ke2 {[%clk 00:54:10]} {[%emt 00:00:50]} Rc8
{[%clk 00:57:23]} {[%emt 00:00:52]} 22. Bb2 {[%clk 00:53:18]} {[%emt 00:01:22]}
Rc2 {[%clk 00:57:03]} {[%emt 00:00:50]} 23. a5 {[%clk 00:53:08]} {[%emt
00:00:41]} Nbd7 {[%clk 00:55:47]} {[%emt 00:01:45]} 24. Bc1 {[%clk 00:44:38]}
{[%emt 00:09:01]} Ne4 {[%clk 00:52:48]} {[%emt 00:03:29]} 25. f3 {[%clk
00:41:17]} {[%emt 00:03:51]} Nc3+ {[%clk 00:51:44]} {[%emt 00:01:33]} 26. Kd3
{[%clk 00:40:18]} {[%emt 00:01:29]} Ra2 {[%clk 00:51:47]} {[%emt 00:00:27]} 27.
Re1 {[%clk 00:35:55]} {[%emt 00:04:53]} Nb5 {[%clk 00:49:05]} {[%emt 00:03:12]}
28. e4 {[%clk 00:34:01]} {[%emt 00:02:24]} Kf8 {[%clk 00:47:17]} {[%emt
00:02:17]} 29. Nb1 {[%clk 00:30:36]} {[%emt 00:03:56]} Nb8 {[%clk 00:40:59]}
{[%emt 00:06:48]} 30. Bd2 {[%clk 00:27:18]} {[%emt 00:03:49]} Na6 {[%clk
00:38:25]} {[%emt 00:03:03]} 31. Rc1 {[%clk 00:26:37]} {[%emt 00:01:11]} Rb2
{[%clk 00:37:15]} {[%emt 00:01:41]} 32. Rc8+ {[%clk 00:25:03]} {[%emt
00:02:03]} Ke7 {[%clk 00:37:15]} {[%emt 00:00:30]} 33. Ra8 {[%clk 00:21:07]}
{[%emt 00:04:27]} Nbc7 {[%clk 00:34:07]} {[%emt 00:03:38]} 34. Ra7 {[%clk
00:18:23]} {[%emt 00:03:15]} Kd7 {[%clk 00:33:24]} {[%emt 00:01:13]} 35. Nc3
{[%clk 00:16:20]} {[%emt 00:02:33]} Rxb3 {[%clk 00:32:02]} {[%emt 00:01:51]} 36.
Kc2 {[%clk 00:16:34]} {[%emt 00:00:17]} Rxc3+ {[%clk 00:32:25]} {[%emt
00:00:07]} 37. Bxc3 {[%clk 00:16:57]} {[%emt 00:00:07]} bxc3 {[%clk 00:32:51]}
{[%emt 00:00:04]} 38. Rb7 {[%clk 00:16:35]} {[%emt 00:00:52]} Kc6 {[%clk
00:32:22]} {[%emt 00:00:59]} 39. Rb6+ {[%clk 00:16:55]} {[%emt 00:00:09]} Kd7
{[%clk 00:32:07]} {[%emt 00:00:46]} 40. Kxc3 {[%clk 00:17:03]} {[%emt
00:00:22]} dxe4 {[%clk 00:31:52]} {[%emt 00:00:44]} 41. fxe4 {[%clk 00:17:15]}
{[%emt 00:00:19]} f5 {[%clk 00:32:14]} {[%emt 00:00:08]} 42. Kd3 {[%clk
00:16:25]} {[%emt 00:01:20]} f4 {[%clk 00:31:12]} {[%emt 00:01:31]} 43. Kc4
{[%clk 00:15:37]} {[%emt 00:01:18]} Kc8 {[%clk 00:26:52]} {[%emt 00:04:50]} 44.
d5 {[%clk 00:15:05]} {[%emt 00:01:03]} exd5+ {[%clk 00:24:58]} {[%emt
00:02:24]} 45. exd5 {[%clk 00:15:25]} {[%emt 00:00:10]} Nb8 {[%clk 00:24:56]}
{[%emt 00:00:32]} 46. d6 {[%clk 00:14:35]} {[%emt 00:01:20]} Ne8 {[%clk
00:23:20]} {[%emt 00:02:04]} 47. Kb5 {[%clk 00:08:39]} {[%emt 00:06:27]} Nd7
{[%clk 00:21:16]} {[%emt 00:02:34]} 48. Kc6 {[%clk 00:05:34]} {[%emt 00:03:35]}
Nxb6 {[%clk 00:20:47]} {[%emt 00:01:00]} 49. axb6 {[%clk 00:05:57]} {[%emt
00:00:06]} Nf6 {[%clk 00:19:01]} {[%emt 00:02:15]} 50. b7+ {[%clk 00:06:15]}
{[%emt 00:00:13]} Kb8 {[%clk 00:19:19]} {[%emt 00:00:12]} 51. d7 {[%clk
00:06:35]} {[%emt 00:00:10]} Nxd7 {[%clk 00:19:43]} {[%emt 00:00:06]} 52. Kxd7
{[%clk 00:06:57]} {[%emt 00:00:08]} Kxb7 {[%clk 00:20:06]} {[%emt 00:00:06]} 53.
Ke6 {[%clk 00:07:23]} {[%emt 00:00:05]} g5 {[%clk 00:20:19]} {[%emt 00:00:17]}
54. Kf5 {[%clk 00:07:46]} {[%emt 00:00:07]} h6 {[%clk 00:20:42]} {[%emt
00:00:07]} 55. Kg6 {[%clk 00:08:07]} {[%emt 00:00:09]} g4 {[%clk 00:20:49]}
{[%emt 00:00:23]} 0-1

[Event "ONJK 2024 ABC"]
[Site "Velp, Netherlands"]
[Date "2024.08.02"]
[Round "1.15"]
[White "Roebers, Bregje"]
[Black "Hagen, Maurits"]
[Result "1-0"]
[TimeControl "90 minutes + 30 seconds"]
[WhiteElo "1796"]
[BlackElo "1654"]

1. e4 {[%clk 01:30:55]} {[%emt 00:00:04]} e5 {[%clk 01:30:54]} {[%emt
00:00:06]} 2. Nc3 {[%clk 01:31:04]} {[%emt 00:00:21]} Bc5 {[%clk 01:31:10]}
{[%emt 00:00:14]} 3. Bc4 {[%clk 01:30:32]} {[%emt 00:01:02]} d6 {[%clk
01:31:29]} {[%emt 00:00:11]} 4. d3 {[%clk 01:28:21]} {[%emt 00:02:41]} Nc6
{[%clk 01:30:42]} {[%emt 00:01:17]} 5. a4 {[%clk 01:24:08]} {[%emt 00:04:43]}
h6 {[%clk 01:29:19]} {[%emt 00:01:52]} 6. h3 {[%clk 01:17:21]} {[%emt
00:07:17]} Nf6 {[%clk 01:28:00]} {[%emt 00:01:49]} 7. Nge2 {[%clk 01:16:43]}
{[%emt 00:01:08]} O-O {[%clk 01:28:05]} {[%emt 00:00:24]} 8. O-O {[%clk
01:16:11]} {[%emt 00:01:03]} a6 {[%clk 01:26:57]} {[%emt 00:01:38]} 9. Kh2
{[%clk 01:09:00]} {[%emt 00:07:41]} Bd7 {[%clk 01:23:38]} {[%emt 00:03:49]} 10.
Bd2 {[%clk 01:05:09]} {[%emt 00:04:21]} Nd4 {[%clk 01:17:00]} {[%emt 00:07:08]}
11. Nxd4 {[%clk 01:02:08]} {[%emt 00:03:31]} Bxd4 {[%clk 01:14:14]} {[%emt
00:03:16]} 12. Bb3 {[%clk 00:56:05]} {[%emt 00:06:33]} c6 {[%clk 01:10:00]}
{[%emt 00:04:43]} 13. f4 {[%clk 00:50:25]} {[%emt 00:06:10]} Bc8 {[%clk
01:05:29]} {[%emt 00:05:02]} 14. a5 {[%clk 00:48:02]} {[%emt 00:02:53]} d5
{[%clk 01:04:09]} {[%emt 00:01:50]} 15. exd5 {[%clk 00:38:35]} {[%emt
00:09:56]} Nxd5 {[%clk 01:04:31]} {[%emt 00:00:09]} 16. Nxd5 {[%clk 00:38:04]}
{[%emt 00:01:02]} cxd5 {[%clk 01:04:52]} {[%emt 00:00:09]} 17. c3 {[%clk
00:37:10]} {[%emt 00:01:24]} Ba7 {[%clk 01:03:48]} {[%emt 00:01:34]} 18. fxe5
{[%clk 00:36:23]} {[%emt 00:01:16]} d4 {[%clk 01:02:37]} {[%emt 00:01:41]} 19.
Bc4 {[%clk 00:32:27]} {[%emt 00:04:26]} Qh4 {[%clk 00:59:36]} {[%emt 00:03:32]}
20. Rf4 {[%clk 00:27:01]} {[%emt 00:05:56]} Qe7 {[%clk 00:59:19]} {[%emt
00:00:46]} 21. Qe2 {[%clk 00:25:40]} {[%emt 00:01:50]} dxc3 {[%clk 00:57:21]}
{[%emt 00:02:30]} 22. Bxc3 {[%clk 00:25:01]} {[%emt 00:01:09]} Be6 {[%clk
00:57:09]} {[%emt 00:00:42]} 23. d4 {[%clk 00:23:45]} {[%emt 00:01:45]} Rad8
{[%clk 00:56:17]} {[%emt 00:01:22]} 24. Raf1 {[%clk 00:19:35]} {[%emt
00:04:40]} Rd7 {[%clk 00:53:22]} {[%emt 00:03:26]} 25. b3 {[%clk 00:17:12]}
{[%emt 00:02:52]} Rc8 {[%clk 00:53:16]} {[%emt 00:00:35]} 26. d5 {[%clk
00:11:02]} {[%emt 00:06:41]} Bxd5 {[%clk 00:52:52]} {[%emt 00:00:54]} 27. Bxd5
{[%clk 00:11:12]} {[%emt 00:00:20]} Rxd5 {[%clk 00:53:16]} {[%emt 00:00:06]} 28.
Rxf7 {[%clk 00:10:50]} {[%emt 00:00:52]} Qe6 {[%clk 00:53:03]} {[%emt
00:00:42]} 29. Qf3 {[%clk 00:08:24]} {[%emt 00:02:55]} Rd7 {[%clk 00:47:25]}
{[%emt 00:06:09]} 30. Rxd7 {[%clk 00:05:59]} {[%emt 00:02:56]} Qxd7 {[%clk
00:47:46]} {[%emt 00:00:08]} 31. Kh1 {[%clk 00:04:26]} {[%emt 00:02:03]} Qc7
{[%clk 00:44:36]} {[%emt 00:03:41]} 32. Qd5+ {[%clk 00:03:47]} {[%emt
00:01:08]} Kh8 {[%clk 00:44:42]} {[%emt 00:00:24]} 33. Bb4 {[%clk 00:03:29]}
{[%emt 00:00:49]} Rd8 {[%clk 00:42:58]} {[%emt 00:02:14]} 34. Bd6 {[%clk
00:03:28]} {[%emt 00:00:30]} Qd7 {[%clk 00:41:01]} {[%emt 00:02:27]} 35. e6
{[%clk 00:00:46]} {[%emt 00:03:12]} Qe8 {[%clk 00:39:39]} {[%emt 00:01:53]} 36.
Qe5 {[%clk 00:00:51]} {[%emt 00:00:25]} Bb8 {[%clk 00:37:59]} {[%emt 00:02:10]}
37. Bxb8 {[%clk 00:01:00]} {[%emt 00:00:21]} Rxb8 {[%clk 00:38:23]} {[%emt
00:00:07]} 38. e7 {[%clk 00:00:57]} {[%emt 00:00:32]} Kh7 {[%clk 00:36:11]}
{[%emt 00:02:42]} 39. Rf8 {[%clk 00:01:03]} {[%emt 00:00:24]} Qxf8 {[%clk
00:36:18]} {[%emt 00:00:22]} 40. exf8=Q Rxf8 {[%clk 00:36:46]} 41. Qc7 {[%clk
00:01:35]} {[%emt 00:00:21]} Rf1+ {[%clk 00:36:49]} {[%emt 00:00:27]} 42. Kh2
{[%clk 00:01:58]} {[%emt 00:00:07]} Ra1 {[%clk 00:37:08]} {[%emt 00:00:11]} 43.
b4 {[%clk 00:02:21]} {[%emt 00:00:07]} 1-0